bitfinex-derivatives/quotes_ETHF0:USTF0_20230701
["timestamp","ask_amount","ask_price","bid_price","bid_amount"]
[1688178972704,8.19146,1925.8,1925.7,0.66785928]
[1688178978712,4.98366,1925.8,1925.7,0.95457563]
[1688178979415,4.672,1925.8,1925.7,0.95457563]
[1688178981015,4.98366,1925.8,1925.7,0.95457563]
[1688178981217,5.27037635,1925.8,1925.7,0.66785928]
[1688178981916,8.47817635,1925.8,1925.7,0.66785928]
[1688178982811,8.47817635,1925.8,1925.7,0.35618928]
[1688178983117,8.47817635,1925.8,1925.7,0.66785928]
[1688178983313,8.47817635,1925.8,1925.7,0.31167]
[1688178983512,8.47817635,1925.8,1925.7,0.64502085]
[1688178989913,8.47817635,1925.8,1925.7,0.33335085]
[1688178990219,8.47817635,1925.8,1925.7,0.9317372]
[1688178990419,8.47817635,1925.8,1925.7,0.33335085]
[1688178990820,8.47817635,1925.8,1925.7,0.64503085]
[1688178992813,8.47817635,1925.8,1925.7,0.9317472]
[1688178993820,8.47817635,1925.8,1925.7,0.64503085]
[1688178994120,8.47817635,1925.8,1925.7,0.33335085]
[1688179003129,5.0,1925.5,1925.4,0.40622515]
[1688179003326,18.13221635,1925.5,1925.1,0.31177]
[1688179003533,4.672,1925.2,1925.1,0.31177]
[1688179003728,4.98375,1925.2,1925.1,0.59848635]
[1688179006035,4.672,1925.2,1925.1,0.59848635]
[1688179006535,4.672,1925.2,1925.1,3.80628635]
[1688179008237,4.672,1925.2,1925.1,0.59848635]
[1688179009737,5.27046635,1925.2,1925.1,0.31177]
[1688179010740,5.27046635,1925.2,1925.1,0.65351171]
[1688179010943,5.27046635,1925.2,1925.1,0.34174171]
[1688179016347,5.27046635,1925.2,1925.1,0.65352171]
[1688179018346,5.27046635,1925.2,1925.1,0.94023806]
[1688179019543,4.98375,1925.2,1925.1,0.94023806]
[1688179020254,4.672,1925.3,1925.1,0.94023806]
[1688179020553,4.672,1925.3,1925.2,0.56748412]
[1688179020844,4.672,1925.3,1925.2,1.22681951]
[1688179021246,4.672,1925.3,1925.2,4.43461951]
[1688179021757,4.672,1925.8,1925.2,12.22020234]
[1688179022051,5.60703,1925.9,1925.6,7.8798]
[1688179022252,4.672,1925.9,1925.7,1.16588047]
[1688179022552,4.672,1925.9,1925.8,0.13543064]
[1688179022751,4.672,1925.9,1925.8,0.44710064]
[1688179024842,4.98365,1925.9,1925.8,0.44710064]
[1688179026751,4.98365,1925.9,1925.8,0.13543064]
[1688179026752,8.47816635,1925.9,1925.8,0.13543064]
[1688179027151,18.15016635,1925.9,1925.3,13.809]
[1688179027348,4.98273,1925.4,1925.3,0.42303407]
[1688179027547,5.26944635,1925.4,1925.2,0.31176]
[1688179027752,4.98275,1925.3,1925.2,0.31176]
[1688179028152,4.98275,1925.3,1925.0,5.43843]
[1688179028453,4.672,1925.2,1925.0,0.77943]
[1688179028643,4.98376,1925.2,1925.1,0.59849635]
[1688179028843,5.27047635,1925.2,1925.1,0.59849635]
[1688179029053,8.47827635,1925.2,1924.9,0.77948]
[1688179029250,4.672,1925.0,1924.9,0.77948]
[1688179029460,4.9838,1925.0,1924.9,1.06619635]
[1688179032257,4.9838,1925.0,1924.9,1.48282048]
[1688179032947,4.9838,1925.0,1924.9,1.19610413]
[1688179033153,5.27051635,1925.0,1924.9,1.19610413]
[1688179034359,5.27051635,1925.0,1924.9,0.41662413]
[1688179034558,5.27051635,1925.0,1924.8,0.31179]
[1688179034761,5.27051635,1925.0,1924.9,0.2694449]
[1688179034953,5.27051635,1925.0,1924.9,0.5812549]
[1688179035153,5.27051635,1925.0,1924.9,0.31181]
[1688179035454,5.27051635,1925.0,1924.9,0.58124099]
[1688179035653,5.27051635,1925.0,1924.9,0.86795734]
[1688179037953,5.27051635,1925.0,1924.9,0.58124099]
[1688179039360,10.39981635,1925.0,1924.9,0.58124099]
[1688179039659,10.39981635,1925.0,1924.9,0.86795734]
[1688179040159,10.1131,1925.0,1924.9,0.86795734]
[1688179040558,10.39981635,1925.0,1924.9,0.58124099]
[1688179040756,10.39981635,1925.0,1924.9,0.26943099]
[1688179040953,18.26261635,1925.0,1924.9,0.26943099]
[1688179041158,18.26261635,1925.0,1924.8,0.4126934]
[1688179041359,4.672,1924.9,1924.8,0.4126934]
[1688179041658,4.98381,1924.9,1924.6,0.31186]
[1688179041859,4.672,1924.7,1924.5,3.98747]
[1688179042055,4.98286,1924.6,1924.5,4.41172297]
[1688179042360,5.26957635,1924.6,1924.5,4.41172297]
[1688179042551,5.26957635,1924.6,1924.5,3.63205297]
[1688179042749,10.33407635,1924.6,1924.5,3.63205297]
[1688179043760,10.33407635,1924.6,1924.5,3.94393297]
[1688179044557,10.33407635,1924.6,1924.5,4.23064932]
[1688179045155,10.04736,1924.6,1924.5,4.23064932]
[1688179045655,4.671,1924.6,1924.5,4.23064932]
[1688179047961,4.98384,1924.8,1924.5,8.90264932]
[1688179048163,4.98384,1924.8,1924.7,3.51963]
[1688179048464,4.98384,1924.8,1924.7,3.80634635]
[1688179049266,4.91379322,1924.9,1924.7,8.47834635]
[1688179049465,4.91379322,1924.9,1924.8,0.87929412]
[1688179049965,9.87250957,1924.9,1924.8,0.31181]
[1688179050159,10.18430957,1924.9,1924.8,0.31181]
[1688179055470,9.89759322,1924.9,1924.8,0.31181]
[1688179056170,9.89759322,1924.9,1924.8,0.66719015]
[1688179057469,10.18430957,1924.9,1924.8,0.66719015]
[1688179059371,10.18430957,1924.9,1924.8,0.35538015]
[1688179069885,10.18430957,1924.9,1924.8,0.6420965]
[1688179070387,9.89759322,1924.9,1924.8,0.9539065]
[1688179070983,10.18430957,1924.9,1924.8,0.6420965]
[1688179071988,10.18430957,1924.9,1924.8,0.9539165]
[1688179073993,10.18430957,1924.9,1924.8,0.66720015]
[1688179074795,9.58579322,1924.9,1924.8,0.9539165]
[1688179075095,9.89759322,1924.9,1924.8,0.9539165]
[1688179082300,0.00779322,1924.9,1924.8,0.9539165]
[1688179089504,0.31959322,1924.9,1924.8,0.9539165]
[1688179090202,4.99059322,1924.9,1924.8,0.9539165]
[1688179090400,5.27730957,1924.9,1924.8,0.9539165]
[1688179093297,4.99059322,1924.9,1924.8,0.9539165]
[1688179096197,5.27730957,1924.9,1924.8,0.66720015]
[1688179096603,5.27730957,1924.9,1924.8,0.9539165]
[1688179097302,5.27730957,1924.9,1924.8,0.66720015]
[1688179097892,5.27730957,1924.9,1924.8,0.9539165]
[1688179098603,5.27730957,1924.9,1924.8,0.66720015]
[1688179099494,5.27730957,1924.9,1924.8,0.9539165]
[1688179099700,4.99059322,1924.9,1924.8,0.9539165]
[1688179102110,4.99159322,1924.9,1924.8,0.9539165]
[1688179106017,5.27830957,1924.9,1924.8,0.9539165]
[1688179106814,4.99159322,1924.9,1924.8,0.9539165]
[1688179111220,5.27830957,1924.9,1924.8,0.66720015]
[1688179111620,4.99159322,1924.9,1924.8,0.9539165]
[1688179112521,5.27830957,1924.9,1924.8,0.9539165]
[1688179112820,4.99159322,1924.9,1924.8,0.9539165]
[1688179114023,5.27830957,1924.9,1924.8,0.9539165]
[1688179114323,4.99159322,1924.9,1924.8,0.9539165]
[1688179116430,0.00779322,1924.9,1924.8,5.6259165]
[1688179116625,0.00779322,1924.9,1924.8,5.6129165]
[1688179127331,0.29450957,1924.9,1924.8,5.6129165]
[1688179127538,0.00779322,1924.9,1924.8,5.6129165]
[1688179129339,0.00779322,1924.9,1924.8,5.6259165]
[1688179129538,0.00779322,1924.9,1924.8,7.22048317]
[1688179134739,0.00779322,1924.9,1924.8,10.42828317]
[1688179142957,0.00779322,1924.9,1924.8,8.8337165]
[1688179148661,0.29450957,1924.9,1924.8,8.54700015]
[1688179149967,0.29450957,1924.9,1924.8,8.8337165]
[1688179151669,0.00779322,1924.9,1924.8,8.8337165]
[1688179152063,5.1634,1925.1,1924.9,5.19348412]
[1688179152259,5.1634,1925.1,1925.0,8.47829635]
[1688179152463,5.1634,1925.1,1925.0,8.769935]
[1688179153072,0.00779201,1925.2,1925.0,8.769935]
[1688179153360,4.9878,1925.3,1925.1,5.23948412]
[1688179153569,4.9878,1925.3,1925.2,8.47826635]
[1688179156065,0.0077912,1925.4,1925.2,8.47826635]
[1688179156272,4.776,1925.7,1925.4,4.626]
[1688179156472,0.93492,1926.1,1925.6,7.8668]
[1688179156767,5.08763,1926.0,1925.9,0.31164]
[1688179156968,5.08763,1926.0,1925.9,5.25735635]
[1688179160074,10.24263,1926.0,1925.9,5.25735635]
[1688179163282,10.52934635,1926.0,1925.9,4.672]
[1688179164178,10.24263,1926.0,1925.9,5.27036635]
[1688179165182,10.24263,1926.0,1925.9,5.69253316]
[1688179166884,5.46663,1926.0,1925.9,5.69253316]
[1688179167882,0.94270836,1926.1,1925.9,5.69253316]
[1688179168076,0.00778836,1926.1,1926.0,13.11928412]
[1688179168278,0.00778836,1926.1,1926.0,13.43090412]
[1688179168681,0.0737731,1926.1,1926.0,13.43090412]
[1688179168881,0.00778836,1926.1,1926.0,13.43090412]
[1688179169076,0.08176148,1926.1,1926.0,13.43090412]
[1688179170091,0.39336148,1926.1,1926.0,13.43090412]
[1688179170385,0.68007783,1926.1,1926.0,7.8798]
[1688179170589,0.60610471,1926.1,1926.0,7.8798]
[1688179170778,0.60610471,1926.1,1926.0,8.19142]
[1688179170975,0.31938836,1926.1,1926.0,8.19142]
[1688179174988,0.60610471,1926.1,1926.0,4.672]
[1688179175989,0.31938836,1926.1,1926.0,4.98362]
[1688179182803,0.31938836,1926.1,1926.0,8.19142]
[1688179193416,0.60610471,1926.1,1926.0,8.19142]
[1688179195311,0.31938836,1926.1,1926.0,8.19142]
[1688179197718,0.60610471,1926.1,1926.0,8.19142]
[1688179199120,0.31938836,1926.1,1926.0,8.19142]
[1688179203819,0.00778836,1926.1,1926.0,12.86342]
[1688179204012,12.41084017,1926.4,1926.1,0.85420047]
[1688179204320,0.31157,1926.3,1926.2,3.51938]
[1688179204521,0.31157,1926.3,1926.2,8.19138]
[1688179204724,0.31157,1926.3,1926.2,9.04558047]
[1688179206022,0.31157,1926.3,1926.2,9.12918048]
[1688179207830,5.20527,1926.3,1926.2,9.12918048]
[1688179216133,5.20527,1926.3,1926.2,9.54427142]
[1688179218336,5.49198635,1926.3,1926.2,8.9767873]
[1688179218535,5.49198635,1926.3,1926.2,8.37849095]
[1688179219136,5.49198635,1926.3,1926.2,5.17069095]
[1688179222340,5.49198635,1926.3,1926.2,5.4574073]
[1688179223241,5.49198635,1926.3,1926.2,5.17069095]
[1688179225442,5.20527,1926.3,1926.2,5.7689873]
[1688179226237,5.59498635,1926.3,1926.2,4.75560001]
[1688179229744,5.59498635,1926.3,1926.2,5.04231636]
[1688179229946,5.30827,1926.3,1926.2,5.04231636]
[1688179230141,5.59498635,1926.3,1926.2,5.04231636]
[1688179230643,5.59498635,1926.3,1926.2,4.75560001]
[1688179230942,5.20527,1926.3,1926.2,5.04231636]
[1688179231245,5.20527,1926.3,1926.2,5.35389636]
[1688179233245,5.20527,1926.3,1926.2,5.35779507]
[1688179233746,5.49198635,1926.3,1926.2,5.35779507]
[1688179234949,5.49198635,1926.3,1926.2,5.07107872]
[1688179235844,5.49198635,1926.3,1926.2,4.75949872]
[1688179237547,5.59498635,1926.3,1926.2,0.08749872]
[1688179237749,5.59498635,1926.3,1926.1,4.66678715]
[1688179237953,7.8798,1926.2,1925.7,4.672]
[1688179238156,4.672,1925.8,1925.6,4.659]
[1688179238347,0.59837635,1925.7,1925.6,4.659]
[1688179239347,0.59837635,1925.7,1925.6,5.35101588]
[1688179239748,0.59837635,1925.7,1925.6,5.66269588]
[1688179240256,0.59837635,1925.7,1925.6,5.37597953]
[1688179240548,0.59837635,1925.7,1925.6,5.66269588]
[1688179241450,5.56416,1925.7,1925.6,5.66269588]
[1688179242153,5.85087635,1925.7,1925.6,5.66269588]
[1688179243453,5.85087635,1925.7,1925.6,5.37597953]
[1688179245452,5.85087635,1925.7,1925.6,5.45010744]
[1688179246056,5.85087635,1925.7,1925.6,5.45361256]
[1688179246256,5.85087635,1925.7,1925.6,5.74032891]
[1688179247454,5.85087635,1925.7,1925.6,5.45361256]
[1688179247654,5.85087635,1925.7,1925.6,5.74032891]
[1688179248756,5.85087635,1925.7,1925.6,5.45361256]
[1688179249664,0.59837635,1925.7,1925.6,5.42864891]
[1688179249855,0.59837635,1925.7,1925.6,5.679201]
[1688179249856,0.31166,1925.7,1925.6,5.679201]
[1688179251662,1.03883,1926.0,1925.6,5.679201]
[1688179251862,6.59480017,1926.1,1925.9,7.8798]
[1688179252054,0.31164,1926.1,1926.0,5.27033635]
[1688179252259,1.0386,1926.3,1926.0,10.50982047]
[1688179252465,1.0386,1926.3,1926.2,4.659]
[1688179252663,1.0386,1926.3,1926.2,5.25729635]
[1688179252858,1.0386,1926.3,1926.2,5.82478047]
[1688179253069,0.31935715,1926.4,1926.2,5.82823602]
[1688179253266,0.00778715,1926.4,1926.3,7.8668]
[1688179253562,0.31933715,1926.4,1926.3,8.17837]
[1688179254166,0.31933715,1926.4,1926.3,8.2857096]
[1688179254866,0.00778715,1926.4,1926.3,8.2857096]
[1688179255775,1.18515104,1926.8,1926.3,8.1817096]
[1688179255965,0.77886,1926.8,1926.7,4.672]
[1688179256167,0.77886,1926.8,1926.7,5.27021635]
[1688179256371,0.77886,1926.8,1926.7,5.83770047]
[1688179257079,0.77886,1926.8,1926.7,5.84090704]
[1688179258281,0.31926513,1926.9,1926.7,5.84090704]
[1688179258491,0.31926513,1926.9,1926.8,4.672]
[1688179258780,0.31926513,1926.9,1926.8,4.98349]
[1688179258972,0.31926513,1926.9,1926.8,4.98659217]
[1688179265991,0.63689412,1926.9,1926.8,4.98659217]
[1688179267687,5.59561047,1926.9,1926.8,0.00310217]
[1688179268284,5.69861047,1926.9,1926.8,0.00310217]
[1688179268883,5.55512951,1926.9,1926.8,0.00310217]
[1688179269080,5.55512951,1926.9,1926.6,4.67978513]
[1688179269280,0.3115,1926.7,1926.6,4.67978513]
[1688179269475,0.59821635,1926.7,1926.6,4.67978513]
[1688179269690,5.54738727,1926.7,1926.6,0.00778513]
[1688179270006,5.54738727,1926.7,1926.4,4.672]
[1688179270288,0.87538727,1926.7,1926.6,0.00503469]
[1688179270484,8.75518727,1926.7,1926.6,0.00503469]
[1688179270981,8.75518727,1926.7,1926.2,4.672]
[1688179271188,0.31155,1926.4,1926.2,4.672]
[1688179271376,0.31155,1926.4,1926.3,0.29450269]
[1688179271578,0.59826635,1926.4,1926.3,0.29450269]
[1688179271779,0.59826635,1926.4,1926.3,0.00778634]
[1688179271975,0.59826635,1926.4,1926.3,0.29894829]
[1688179272376,0.59826635,1926.4,1926.3,0.61051829]
[1688179272579,0.31155,1926.4,1926.3,5.28251829]
[1688179273792,0.59826635,1926.4,1926.3,4.99580194]
[1688179273990,0.59826635,1926.4,1926.3,5.28251829]
[1688179274599,0.31155,1926.4,1926.3,5.28251829]
[1688179278795,0.31155,1926.4,1926.3,8.49031829]
[1688179280902,0.45746934,1926.4,1926.3,8.49031829]
[1688179281896,0.74418569,1926.4,1926.3,8.49031829]
[1688179282092,0.74418569,1926.4,1926.3,8.20360194]
[1688179282294,0.74418569,1926.4,1926.3,4.68423194]
[1688179282497,0.74418569,1926.4,1926.3,0.01223194]
[1688179285697,0.74418569,1926.4,1926.3,0.32380194]
[1688179285886,0.45746934,1926.4,1926.3,0.61051829]
[1688179287796,0.74418569,1926.4,1926.3,0.32380194]
[1688179288006,5.41618569,1926.4,1926.3,0.01223194]
[1688179288300,10.18228569,1926.4,1926.3,0.01223194]
[1688179289589,15.69372554,1926.4,1926.3,0.01223194]
[1688179297311,16.11703844,1926.4,1926.3,0.01223194]
[1688179297912,11.15832209,1926.4,1926.3,0.61051829]
[1688179298213,11.15832209,1926.4,1926.3,5.26951829]
[1688179298214,0.14591934,1926.4,1926.3,5.26951829]
[1688179298410,0.31152,1926.7,1926.4,0.56748412]
[1688179298613,0.31149,1926.8,1926.7,0.3115]
[1688179298811,0.31149,1926.8,1926.7,4.9835]
[1688179299011,0.31149,1926.8,1926.7,5.84271983]
[1688179303022,0.59820635,1926.8,1926.7,0.00501936]
[1688179303918,5.27020635,1926.8,1926.7,0.00501936]
[1688179304813,5.37320635,1926.8,1926.7,0.00501936]
[1688179305012,5.37320635,1926.8,1926.5,4.659]
[1688179306122,0.14523375,1926.7,1926.6,0.00503469]
[1688179306314,0.45673375,1926.7,1926.6,0.00503469]
[1688179307422,3.66453375,1926.7,1926.6,0.00503469]
[1688179307719,8.43953375,1926.7,1926.6,0.00503469]
[1688179308111,8.43953375,1926.7,1926.3,4.67978634]
[1688179308418,0.31155,1926.4,1926.3,4.67978634]
[1688179308719,0.74358183,1926.4,1926.3,4.67978634]
[1688179309113,0.74358183,1926.4,1926.3,4.68486703]
[1688179311926,5.41458183,1926.4,1926.3,0.01286703]
[1688179319524,5.12786548,1926.4,1926.3,0.29958338]
[1688179319827,0.45686548,1926.4,1926.3,5.28315338]
[1688179320124,0.14531548,1926.4,1926.3,5.28315338]
[1688179320524,0.10420168,1926.4,1926.3,5.28315338]
[1688179320730,0.93467,1926.6,1926.3,5.28315338]
[1688179320921,0.93467,1926.6,1926.5,7.8798]
[1688179321126,0.93467,1926.6,1926.5,8.47805635]
[1688179321524,0.93467,1926.6,1926.5,5.27025635]
[1688179322017,0.93467,1926.6,1926.5,5.27530637]
[1688179322627,0.93467,1926.6,1926.5,8.48310637]
[1688179323719,0.77882,1926.8,1926.5,8.48310637]
[1688179323931,0.78661513,1926.9,1926.7,7.8668]
[1688179324133,0.78661513,1926.9,1926.8,5.27020635]
[1688179324323,0.78661513,1926.9,1926.8,5.83769047]
[1688179325031,0.00778513,1926.9,1926.8,5.8426945]
[1688179325232,0.31925513,1926.9,1926.8,5.8426945]
[1688179326032,0.49045819,1926.9,1926.8,5.8426945]
[1688179330137,0.49045819,1926.9,1926.8,5.9466945]
[1688179330527,0.49045819,1926.9,1926.8,5.37921038]
[1688179330730,0.77717454,1926.9,1926.8,5.37921038]
[1688179330926,0.77717454,1926.9,1926.8,4.98849403]
[1688179331433,0.77717454,1926.9,1926.8,5.27521038]
[1688179332131,0.77717454,1926.9,1926.8,4.67700403]
[1688179332728,0.77717454,1926.9,1926.8,4.96372038]
[1688179332929,0.49045819,1926.9,1926.8,5.27521038]
[1688179337740,0.77717454,1926.9,1926.8,5.27521038]
[1688179338443,0.77717454,1926.9,1926.8,4.67700403]
[1688179339235,0.77717454,1926.9,1926.8,4.96372038]
[1688179339436,0.49045819,1926.9,1926.8,5.27521038]
[1688179342034,0.49045819,1926.9,1926.8,0.60321038]
[1688179347646,0.77717454,1926.9,1926.8,0.60321038]
[1688179348949,0.49045819,1926.9,1926.8,0.60321038]
[1688179350342,0.17898819,1926.9,1926.8,5.27521038]
[1688179350648,0.58931308,1926.9,1926.8,5.27521038]
[1688179355453,0.58931308,1926.9,1926.8,5.68875631]
[1688179361348,0.87602943,1926.9,1926.8,5.40203996]
[1688179361651,0.87602943,1926.9,1926.8,0.41854996]
[1688179362957,0.97902943,1926.9,1926.8,0.41854996]
[1688179372063,5.65102943,1926.9,1926.8,0.41854996]
[1688179372561,5.65102943,1926.9,1926.8,0.00500403]
[1688179372762,5.50242048,1926.9,1926.8,0.00500403]
[1688179373163,5.50242048,1926.9,1926.6,5.45077]
[1688179373554,5.50242048,1926.9,1926.6,4.9835]
[1688179373757,10.44262048,1926.9,1926.6,4.9835]
[1688179374164,15.95406033,1926.9,1926.7,0.00439194]
[1688179376161,3.2078,1926.8,1926.7,0.00439194]
[1688179376362,3.51929,1926.8,1926.7,0.00439194]
[1688179379179,3.62229,1926.8,1926.7,0.00439194]
[1688179379376,8.29429,1926.8,1926.7,0.00439194]
[1688179383176,5.08649,1926.8,1926.7,0.00439194]
[1688179383778,5.08649,1926.8,1926.7,0.29110829]
[1688179385382,5.08649,1926.8,1926.7,0.00439194]
[1688179385580,4.98349,1926.8,1926.7,0.00439194]
[1688179385980,5.09459942,1926.8,1926.7,0.00439194]
[1688179390887,5.51732783,1926.8,1926.7,0.00439194]
[1688179394186,8.72512783,1926.8,1926.7,0.00439194]
[1688179397186,8.72512783,1926.8,1926.4,0.41555]
[1688179397396,4.672,1926.6,1926.4,0.41555]
[1688179397692,0.42299354,1926.5,1926.4,0.41555]
[1688179397992,0.42299354,1926.5,1926.4,0.70226635]
[1688179398191,0.42299354,1926.5,1926.4,1.11803388]
[1688179401694,0.42299354,1926.5,1926.4,1.01403388]
[1688179402691,0.70970989,1926.5,1926.4,1.01403388]
[1688179404301,0.42299354,1926.5,1926.4,1.01403388]
[1688179405005,0.11146354,1926.5,1926.4,5.68603388]
[1688179405400,0.11146354,1926.5,1926.4,5.79003388]
[1688179405602,1.03839,1926.8,1926.5,0.56748412]
[1688179405815,1.03839,1926.8,1926.7,7.8798]
[1688179406104,1.03839,1926.8,1926.7,8.1913]
[1688179406295,1.03839,1926.8,1926.7,8.75878412]
[1688179407106,1.03839,1926.8,1926.7,8.76380348]
[1688179413003,1.32510635,1926.8,1926.7,8.76380348]
[1688179413210,1.45257624,1926.8,1926.7,8.19631936]
[1688179414105,1.16585989,1926.8,1926.7,8.19631936]
[1688179414403,1.45257624,1926.8,1926.7,8.19631936]
[1688179414607,1.45257624,1926.8,1926.7,0.31651936]
[1688179414811,1.45257624,1926.8,1926.7,0.00501936]
[1688179415905,6.50157624,1926.8,1926.7,0.00501936]
[1688179416304,12.01301609,1926.8,1926.7,0.00501936]
[1688179420507,16.68501609,1926.8,1926.7,0.00501936]
[1688179422799,16.78801609,1926.8,1926.7,0.00501936]
[1688179424210,16.78801609,1926.8,1926.4,0.31155]
[1688179424407,4.672,1926.6,1926.5,0.41492319]
[1688179424614,5.27020635,1926.6,1926.4,0.77881]
[1688179424815,5.39802739,1926.6,1926.4,0.77881]
[1688179425110,5.39802739,1926.6,1926.5,0.00502042]
[1688179425410,10.22362739,1926.6,1926.5,0.31655042]
[1688179425612,5.39802739,1926.6,1926.5,0.00502042]
[1688179426614,5.39802739,1926.6,1926.5,0.31655042]
[1688179427302,5.39802739,1926.6,1926.5,0.60326677]
[1688179428208,5.39802739,1926.6,1926.5,0.31655042]
[1688179429205,5.39802739,1926.6,1926.5,0.31153]
[1688179432213,5.39802739,1926.6,1926.5,0.59824635]
[1688179432518,4.79982104,1926.6,1926.5,0.59824635]
[1688179432715,0.12782104,1926.6,1926.5,5.25724635]
[1688179433109,6.29017985,1926.7,1926.5,5.25724635]
[1688179433310,0.12808114,1926.6,1926.5,5.25724635]
[1688179433605,0.77874,1926.7,1926.5,5.25724635]
[1688179433809,0.12809642,1926.6,1926.5,5.25724635]
[1688179434015,0.31151,1926.6,1926.5,5.25724635]
[1688179434319,0.43962189,1926.6,1926.5,5.25724635]
[1688179442216,0.43962189,1926.6,1926.5,0.59824635]
[1688179447421,0.72633824,1926.6,1926.5,0.31153]
[1688179447619,5.39833824,1926.6,1926.4,0.41766308]
[1688179447826,4.672,1926.5,1926.4,0.41766308]
[1688179448026,4.98355,1926.5,1926.3,0.31935634]
[1688179448219,0.28671635,1926.4,1926.3,0.31935634]
[1688179448427,5.56667635,1926.4,1926.3,0.31935634]
[1688179449021,5.56667635,1926.4,1926.3,0.00778634]
[1688179449925,5.56667635,1926.4,1926.3,0.42231667]
[1688179450222,5.56667635,1926.4,1926.3,0.00778634]
[1688179451127,13.44647635,1926.4,1926.3,0.00778634]
[1688179451331,18.9579162,1926.4,1926.3,0.08443998]
[1688179451523,18.9579162,1926.4,1926.3,0.1421473]
[1688179454621,19.0609162,1926.4,1926.3,0.1421473]
[1688179454829,0.103,1926.3,1925.8,4.9364]
[1688179455027,4.672,1926.0,1925.8,4.9364]
[1688179455227,5.78485635,1925.9,1925.8,4.9364]
[1688179455531,5.78485635,1925.9,1925.8,5.35787014]
[1688179456326,5.78485635,1925.9,1925.8,0.42147014]
[1688179456732,5.78485635,1925.9,1925.7,4.99142877]
[1688179457527,0.31165,1925.9,1925.8,4.672]
[1688179457726,0.31165,1925.9,1925.8,4.98366]
[1688179457921,0.31165,1925.9,1925.8,8.19146]
[1688179458131,0.31165,1925.9,1925.8,8.75894412]
[1688179460027,0.31165,1925.9,1925.8,5.55114412]
[1688179461227,0.31165,1925.9,1925.8,8.75894412]
[1688179462537,0.31165,1925.9,1925.8,8.86891671]
[1688179464031,0.31165,1925.9,1925.8,5.66111671]
[1688179470752,0.31165,1925.9,1925.8,8.86891671]
[1688179474056,0.93493,1926.1,1925.9,0.28671635]
[1688179474252,0.93493,1926.1,1926.0,8.74592412]
[1688179474658,0.93493,1926.1,1926.0,9.03264047]
[1688179475953,0.93493,1926.2,1926.0,9.03264047]
[1688179476153,0.31162,1926.1,1926.0,9.03264047]
[1688179480463,0.31162,1926.1,1926.0,5.82484047]
[1688179484665,0.31162,1926.1,1926.0,6.23101595]
[1688179486364,5.06062,1926.1,1926.0,6.23101595]
[1688179489965,5.34733635,1926.1,1926.0,6.23101595]
[1688179490666,5.06062,1926.1,1926.0,6.23101595]
[1688179491779,5.34733635,1926.1,1926.0,5.38981548]
[1688179493868,5.34733635,1926.1,1926.0,4.98364]
[1688179494372,8.55513635,1926.1,1926.0,4.98364]
[1688179496875,5.34733635,1926.1,1926.0,4.98364]
[1688179497266,5.34733635,1926.1,1926.0,4.672]
[1688179497572,5.34733635,1926.1,1926.0,4.98364]
[1688179497976,13.22713635,1926.1,1925.9,1.18615669]
[1688179498177,18.74168377,1926.1,1925.9,1.18615669]
[1688179501074,18.74168377,1926.1,1925.9,1.47287304]
[1688179501276,10.86188377,1926.1,1925.9,6.14487304]
[1688179501471,4.749,1926.1,1925.9,6.14487304]
[1688179501685,0.31162,1926.1,1926.0,5.53993752]
[1688179501974,0.31162,1926.1,1926.0,5.85156752]
[1688179507083,5.80103,1926.2,1926.0,5.85156752]
[1688179507285,5.80103,1926.2,1926.1,7.8798]
[1688179507480,5.80103,1926.2,1926.1,8.47814635]
[1688179507676,5.80103,1926.2,1926.1,8.77926108]
[1688179510481,6.08774635,1926.2,1926.1,8.77926108]
[1688179510987,5.80103,1926.2,1926.1,8.77926108]
[1688179512883,6.08774635,1926.2,1926.1,8.77926108]
[1688179515081,5.80103,1926.2,1926.1,8.77926108]
[1688179521194,5.80103,1926.2,1926.1,9.1941318]
[1688179522194,6.08774635,1926.2,1926.1,9.1941318]
[1688179523900,5.80103,1926.2,1926.1,9.1941318]
[1688179527901,0.93493,1926.2,1926.1,9.1941318]
[1688179528602,5.79353,1926.2,1926.1,9.1941318]
[1688179529904,6.44936742,1926.4,1926.1,9.1941318]
[1688179530205,0.93482,1926.4,1926.3,7.8798]
[1688179530401,0.93482,1926.4,1926.3,8.47806635]
[1688179530599,0.93482,1926.4,1926.3,8.71771791]
[1688179532011,0.93482,1926.4,1926.3,8.64620263]
[1688179532404,6.44936742,1926.4,1926.3,8.64620263]
[1688179532711,6.44936742,1926.4,1926.3,3.97420263]
[1688179532919,0.93482,1926.4,1926.3,3.97420263]
[1688179533113,0.93482,1926.4,1926.3,3.9774676]
[1688179533513,0.93482,1926.4,1926.3,3.6659176]
[1688179533718,0.93482,1926.4,1926.3,3.9774676]
[1688179534215,0.93482,1926.4,1926.3,3.6659176]
[1688179534416,1.22153635,1926.4,1926.3,3.37920125]
[1688179534721,1.22153635,1926.4,1926.3,3.44752817]
[1688179535107,1.22153635,1926.4,1926.3,3.73424452]
[1688179536019,0.93482,1926.4,1926.3,3.73424452]
[1688179538324,1.22153635,1926.4,1926.3,4.04581452]
[1688179539216,0.93482,1926.4,1926.3,4.04581452]
[1688179539825,0.93482,1926.4,1926.3,4.04582452]
[1688179540017,0.93482,1926.4,1926.3,3.73424452]
[1688179540317,0.93482,1926.4,1926.3,4.04581452]
[1688179541131,0.93482,1926.4,1926.3,4.04582452]
[1688179542020,0.93482,1926.4,1926.3,3.73424452]
[1688179542413,1.22153635,1926.4,1926.3,3.75909817]
[1688179542619,6.73608377,1926.4,1926.3,3.75909817]
[1688179543019,6.73608377,1926.4,1926.3,4.04581452]
[1688179544520,6.73608377,1926.4,1926.3,3.75910817]
[1688179544721,6.73608377,1926.4,1926.3,3.44752817]
[1688179545028,11.40708377,1926.4,1926.3,0.23972817]
[1688179556727,16.40708377,1926.4,1926.3,0.23972817]
[1688179557128,0.103,1926.3,1925.7,0.00778877]
[1688179557333,4.672,1925.8,1925.7,0.00778877]
[1688179557533,5.27035635,1925.8,1925.7,0.00778877]
[1688179558334,15.21605635,1925.8,1925.7,0.01225042]
[1688179559224,15.21605635,1925.8,1925.7,0.00778877]
[1688179561237,15.21605635,1925.8,1925.7,0.01225042]
[1688179563232,15.21605635,1925.8,1925.7,0.29896677]
[1688179563432,10.06285635,1925.8,1925.7,0.61062677]
[1688179563635,5.10414,1925.8,1925.7,5.26962677]
[1688179563935,0.31164,1925.8,1925.7,5.26962677]
[1688179564631,5.27035635,1925.8,1925.7,0.98864576]
[1688179564833,5.27035635,1925.8,1925.7,0.67698576]
[1688179566037,5.27035635,1925.8,1925.7,0.39026941]
[1688179576156,5.27035635,1925.8,1925.7,0.38580776]
[1688179576559,10.27035635,1925.8,1925.7,0.38580776]
[1688179576949,4.672,1925.5,1925.4,0.42595352]